bitfinex/quotes_BTCUSD_20251019
["timestamp","ask_amount","ask_price","bid_price","bid_amount"]
[1760838759189,0.2104553,107240.0,107210.0,0.14037392]
[1760838759401,0.00162625,107220.0,107210.0,0.14037392]
[1760838759609,0.2104553,107240.0,107210.0,0.14037392]
[1760838759806,0.00162622,107220.0,107210.0,0.14037392]
[1760838760221,0.2104553,107240.0,107210.0,0.14037392]
[1760838760446,0.00162622,107220.0,107210.0,0.14037392]
[1760838760680,0.2104553,107240.0,107210.0,0.14037392]
[1760838760884,0.00162622,107220.0,107210.0,0.14037392]
[1760838761092,0.2104553,107240.0,107210.0,0.14037392]
[1760838761299,0.22796353,107240.0,107210.0,0.14037392]
[1760838761512,0.00162622,107220.0,107210.0,0.14037392]
[1760838761717,0.2104553,107240.0,107210.0,0.14037392]
[1760838761934,0.22959067,107240.0,107210.0,0.14037392]
[1760838768045,0.34,107230.0,107210.0,0.14037392]
[1760838768244,0.35750915,107230.0,107210.0,0.14037392]
[1760838770406,0.3575137,107230.0,107210.0,0.14037392]
[1760838777988,0.37214577,107230.0,107210.0,0.14037392]
[1760838782970,0.03214577,107230.0,107210.0,0.12171895]
[1760838783171,0.03214577,107230.0,107210.0,0.14037392]
[1760838787036,0.03214577,107230.0,107210.0,0.12171895]
[1760838787246,0.01463207,107230.0,107220.0,0.01865323]
[1760838787468,0.01463207,107230.0,107220.0,0.0280558]
[1760838787674,0.00162622,107240.0,107220.0,0.0280558]
[1760838788105,0.0191414,107240.0,107220.0,0.0280558]
[1760838790395,0.03377223,107240.0,107220.0,0.0280558]
[1760838795217,0.01625705,107240.0,107220.0,0.0280558]
[1760838808837,0.03375421,107240.0,107220.0,0.0280558]
[1760838813034,0.01912338,107240.0,107220.0,0.0280558]
[1760838813676,0.01913121,107240.0,107220.0,0.0280558]
[1760838814053,0.22386207,107250.0,107220.0,0.0280558]
[1760838814328,0.00162613,107240.0,107220.0,0.0280558]
[1760838825454,0.34162613,107240.0,107220.0,0.0280558]
[1760838826057,0.35913722,107240.0,107220.0,0.0280558]
[1760838827677,0.37376829,107240.0,107220.0,0.0280558]
[1760838828151,0.3562572,107240.0,107220.0,0.0280558]
[1760838828305,0.3737681,107240.0,107220.0,0.0280558]
[1760838837492,0.35913703,107240.0,107220.0,0.0280558]
[1760838840633,0.37376759,107240.0,107220.0,0.0280558]
[1760838846645,0.35913703,107240.0,107220.0,0.0280558]
[1760838849868,0.37376759,107240.0,107220.0,0.0280558]
[1760838853082,0.03376759,107240.0,107220.0,0.0280558]
[1760838857103,0.01913703,107240.0,107220.0,0.0280558]
[1760838859673,0.22424204,107260.0,107220.0,0.0280558]
[1760838859901,0.00162587,107240.0,107220.0,0.0280558]
[1760838860285,5.0,107250.0,107220.0,0.0280558]
[1760838863509,0.00162588,107250.0,107220.0,0.0280558]
[1760838865080,0.1974345,107250.0,107220.0,0.0280558]
[1760838865289,0.22430072,107250.0,107220.0,0.0280558]
[1760838865483,0.25235759,107250.0,107220.0,0.0280558]
[1760838869780,0.28506217,107250.0,107220.0,0.0280558]
[1760838871636,0.30257743,107250.0,107220.0,0.0280558]
[1760838872878,0.3172081,107250.0,107220.0,0.0280558]
[1760838873715,0.3172081,107250.0,107210.0,0.01879432]
[1760838873910,0.3172081,107250.0,107210.0,0.04685119]
[1760838875783,0.09453326,107250.0,107210.0,0.04685119]
[1760838876513,0.09453326,107250.0,107210.0,0.01879432]
[1760838876728,0.09453326,107250.0,107220.0,0.02805687]
[1760838878475,0.07990259,107250.0,107220.0,0.02805687]
[1760838881097,0.09453298,107250.0,107220.0,0.02805687]
[1760838881506,0.00146608,107230.0,107220.0,0.02805687]
[1760838882117,0.00309196,107230.0,107220.0,0.02805687]
[1760838882318,0.01772234,107230.0,107220.0,0.02805687]
[1760838882742,0.01772234,107230.0,107220.0,0.0467101]
[1760838883138,0.01772234,107230.0,107220.0,0.02805687]
[1760838888932,0.00309196,107230.0,107220.0,0.02805687]
[1760838891830,0.01772264,107230.0,107220.0,0.02805687]
[1760838893340,0.01772264,107230.0,107210.0,0.00013935]
[1760838893549,0.01625656,107230.0,107210.0,0.02819743]
[1760838898741,0.00110832,107220.0,107210.0,0.02819743]
[1760838901424,0.00110832,107220.0,107210.0,0.00013935]
[1760838901629,0.18764068,107220.0,107210.0,0.00013935]
[1760838901844,5.2145069,107220.0,107210.0,0.00013935]
[1760838901990,5.23200808,107220.0,107210.0,0.00013935]
[1760838902202,5.26006897,107220.0,107210.0,0.00013935]
[1760838904114,5.27470377,107220.0,107210.0,0.00013935]
[1760838907806,5.04380401,107220.0,107210.0,0.00013935]
[1760838908009,0.04380401,107220.0,107210.0,0.00013935]
[1760838908392,0.01574312,107220.0,107210.0,0.00013935]
[1760838909099,0.04260934,107220.0,107210.0,0.00013935]
[1760838913830,0.2291417,107220.0,107210.0,0.00013935]
[1760838915310,0.03790611,107220.0,107210.0,0.00013935]
[1760838915548,0.05254033,107220.0,107210.0,0.00013935]
[1760838915745,0.03790611,107220.0,107210.0,0.00013935]
[1760838917834,0.18653236,107220.0,107210.0,0.00013935]
[1760838922007,0.20399656,107220.0,107210.0,0.00013935]
[1760838924474,5.20615366,107220.0,107210.0,0.00013935]
[1760838926458,5.22078827,107220.0,107210.0,0.00013935]
[1760838927505,5.22294537,107220.0,107210.0,0.00013935]
[1760838927714,5.25101211,107220.0,107210.0,0.00013935]
[1760838934691,5.25104856,107220.0,107210.0,0.00013935]
[1760838935501,5.23641395,107220.0,107210.0,0.00013935]
[1760838938753,5.25104948,107220.0,107210.0,0.00013935]
[1760838943017,5.23641395,107220.0,107210.0,0.00013935]
[1760838943945,5.33483395,107220.0,107210.0,0.00013935]
[1760838946333,5.34946963,107220.0,107210.0,0.00013935]
[1760838947695,5.33483395,107220.0,107210.0,0.00013935]
[1760838950538,5.34946963,107220.0,107210.0,0.00013935]
[1760838954387,5.25104963,107220.0,107210.0,0.00013935]
[1760838954597,5.25105853,107220.0,107210.0,0.00013935]
[1760838960757,5.06021197,107220.0,107210.0,0.00013935]
[1760838960954,5.03214523,107220.0,107210.0,0.00013935]
[1760838961159,5.01750955,107220.0,107210.0,0.00013935]
[1760838963948,5.03214307,107220.0,107210.0,0.00013935]
[1760838964521,0.03214307,107220.0,107210.0,0.00013935]
[1760838965148,0.01750955,107220.0,107210.0,0.00013935]
[1760838965354,5.0,107220.0,107210.0,0.00013935]
[1760838965728,5.01749143,107220.0,107210.0,0.00013935]
[1760838965905,0.01749143,107220.0,107210.0,0.00013935]
[1760838966322,5.0,107220.0,107210.0,0.00013935]
[1760838967280,0.02306794,107220.0,107210.0,0.00013935]
[1760838968488,0.03770139,107220.0,107210.0,0.00013935]
[1760838970365,0.22423375,107220.0,107210.0,0.00013935]
[1760838978747,0.01463345,107220.0,107210.0,0.00013935]
[1760838982680,0.00162616,107230.0,107210.0,0.00013935]
[1760838982890,0.43890613,107250.0,107210.0,0.01879432]
[1760838983074,5.0,107240.0,107210.0,0.01879432]
[1760838983309,5.0,107230.0,107210.0,0.01879432]
[1760838983480,5.0,107240.0,107210.0,0.01879432]
[1760838983682,5.0,107230.0,107210.0,0.01879432]
[1760838983879,5.0,107240.0,107210.0,0.01879432]
[1760838984080,5.0,107230.0,107210.0,0.01879432]
[1760838984319,5.0,107240.0,107210.0,0.01879432]
[1760838984554,5.0,107230.0,107210.0,0.01879432]
[1760838984874,5.0,107240.0,107210.0,0.01879432]
[1760838985096,5.0,107230.0,107210.0,0.01879432]
[1760838985330,5.0,107240.0,107210.0,0.01879432]
[1760838985537,0.01463177,107230.0,107210.0,0.01879432]
[1760838986733,0.50162597,107240.0,107210.0,0.01879432]
[1760838987033,5.0,107230.0,107210.0,0.01879432]
[1760838989437,5.0,107230.0,107210.0,0.00013935]
[1760838990061,0.01463133,107230.0,107210.0,0.00013935]
[1760838991101,0.0392587,107230.0,107210.0,0.00013935]
[1760838993070,0.22577483,107230.0,107210.0,0.00013935]
[1760838993478,0.21863054,107230.0,107210.0,0.00013935]
[1760838993748,0.22862658,107230.0,107210.0,0.00013935]
[1760838995355,8.775e-05,107220.0,107210.0,0.00013935]
[1760838995563,0.02462737,107220.0,107210.0,0.00013935]
[1760838995907,0.02625343,107220.0,107210.0,0.00013935]
[1760838996726,0.04088632,107220.0,107210.0,0.00013935]
[1760838999520,0.01625895,107220.0,107210.0,0.00013935]
[1760839011021,0.20279131,107220.0,107210.0,0.00013935]
[1760839011398,0.18379883,107230.0,107210.0,0.00013935]
[1760839011610,0.20279218,107220.0,107210.0,0.00013935]
[1760839011831,5.2310295,107220.0,107210.0,0.00013935]
[1760839012032,5.27314865,107220.0,107210.0,0.00013935]
[1760839012234,5.23027763,107220.0,107210.0,0.00013935]
[1760839012710,5.22865151,107220.0,107210.0,0.00013935]
[1760839014889,5.24328666,107220.0,107210.0,0.00013935]
[1760839015193,5.24491295,107220.0,107210.0,0.00013935]
[1760839016701,5.27298053,107220.0,107210.0,0.00013935]
[1760839017725,0.18659756,107190.0,107170.0,0.00107401]
[1760839017941,0.18659756,107190.0,107170.0,0.00157218]
[1760839018092,5.0,107190.0,107170.0,0.00049817]
[1760839018428,0.00162658,107190.0,107180.0,0.00182441]
[1760839019477,5.0,107190.0,107180.0,0.00182441]
[1760839020063,0.18658456,107190.0,107180.0,0.00182441]
[1760839020901,0.01747716,107190.0,107180.0,0.00182441]
[1760839021309,5.0,107190.0,107180.0,0.00182441]
[1760839021536,0.01747821,107190.0,107180.0,0.00182441]
[1760839022292,0.01910471,107190.0,107180.0,0.00182441]
[1760839024288,0.0016265,107190.0,107180.0,0.00182441]
[1760839027289,0.01626403,107190.0,107180.0,0.00182441]
[1760839027451,0.35626403,107190.0,107180.0,0.00182441]
[1760839028268,0.37372288,107190.0,107180.0,0.00182441]
[1760839030505,0.01745885,107190.0,107180.0,0.00182441]
[1760839030684,0.01908533,107190.0,107180.0,0.00182441]
[1760839032759,0.35908533,107190.0,107180.0,0.00182441]
[1760839032973,0.16123536,107190.0,107180.0,0.00182441]
[1760839033102,5.0,107190.0,107180.0,0.00182441]
[1760839033305,0.00162648,107190.0,107180.0,0.00182441]
[1760839033923,0.20120439,107200.0,107180.0,0.00182441]
[1760839034176,5.0,107190.0,107170.0,0.00049817]
[1760839036974,0.34162648,107190.0,107170.0,0.00049817]
[1760839037315,0.34162648,107190.0,107180.0,0.00182441]
[1760839045041,0.35913211,107190.0,107180.0,0.00182441]
[1760839060773,0.35915474,107190.0,107180.0,0.00182441]
[1760839087495,0.37379167,107190.0,107180.0,0.00182441]
[1760839088330,0.39245709,107190.0,107180.0,0.00182441]
[1760839094155,0.37782016,107190.0,107180.0,0.00182441]
[1760839097567,0.39245675,107190.0,107180.0,0.00182441]
[1760839104157,0.37782016,107190.0,107180.0,0.00182441]
[1760839107436,0.39245679,107190.0,107180.0,0.00182441]
[1760839111710,0.37492853,107190.0,107180.0,0.00182441]
[1760839113298,0.39245787,107190.0,107180.0,0.00182441]
[1760839114181,0.37492853,107190.0,107180.0,0.00182441]
[1760839114316,0.3602919,107190.0,107180.0,0.00182441]
[1760839117168,0.03492846,107190.0,107180.0,0.00182441]
[1760839117412,0.37492846,107190.0,107180.0,0.00182441]
[1760839117589,0.39245779,107190.0,107180.0,0.00182441]
[1760839120552,0.21895645,107200.0,107180.0,0.00182441]
[1760839120754,5.0,107190.0,107170.0,0.01916359]
[1760839120954,0.02079009,107190.0,107170.0,0.00049817]
[1760839121254,0.02079009,107190.0,107180.0,0.01916359]
[1760839122609,0.36079009,107190.0,107180.0,0.01916359]
[1760839132674,0.37831568,107190.0,107180.0,0.01916359]
[1760839132919,0.37831568,107190.0,107180.0,0.020988]
[1760839133473,0.35915209,107190.0,107180.0,0.020988]
[1760839133678,0.01915209,107190.0,107180.0,0.020988]
[1760839134582,0.0016265,107190.0,107180.0,0.020988]
[1760839136274,0.0016265,107190.0,107180.0,0.03964819]
[1760839136828,0.34,107190.0,107180.0,0.03964819]
[1760839138632,0.34,107210.0,107180.0,0.03964819]
[1760839138849,0.35750138,107210.0,107180.0,0.03782378]
[1760839139087,0.35750138,107210.0,107180.0,0.01866019]
[1760839139296,0.37213632,107210.0,107190.0,0.02806451]
[1760839140490,0.37376263,107210.0,107190.0,0.02806451]
[1760839140996,0.37213632,107210.0,107190.0,0.02806451]
[1760839142771,0.03213632,107210.0,107190.0,0.02806451]
[1760839144150,0.03213632,107210.0,107190.0,0.02953082]
[1760839144521,0.03213632,107210.0,107190.0,0.00146631]
[1760839144898,0.37213632,107210.0,107200.0,0.02806451]
[1760839147554,0.35750138,107210.0,107200.0,0.02806451]
[1760839148309,0.35750138,107210.0,107190.0,0.00146631]
[1760839148910,0.35750138,107210.0,107190.0,0.02953082]
[1760839149149,0.52656716,107200.0,107190.0,0.02953082]
[1760839149346,0.36462737,107200.0,107190.0,0.00146631]
[1760839149829,0.36625372,107200.0,107190.0,0.00146631]
[1760839150336,0.38088898,107200.0,107190.0,0.00146631]
[1760839155564,0.35626161,107200.0,107190.0,0.00146631]
[1760839156348,0.34162635,107200.0,107190.0,0.00146631]
[1760839159053,0.34162635,107200.0,107190.0,0.04818725]
[1760839160028,0.34,107200.0,107190.0,0.04818725]
[1760839164753,0.34162618,107200.0,107190.0,0.04818725]
[1760839168842,0.34162618,107200.0,107190.0,0.1231288]
[1760839170470,0.36625355,107200.0,107190.0,0.1231288]
[1760839170665,0.36625355,107200.0,107190.0,0.0295288]
[1760839179030,0.02625355,107200.0,107190.0,0.0295288]
[1760839183591,0.00162618,107200.0,107190.0,0.0295288]
[1760839195983,0.00162618,107200.0,107190.0,0.04818725]
[1760839196532,0.34,107220.0,107190.0,0.04818725]
[1760839196739,0.34,107220.0,107200.0,0.0936]
[1760839197143,0.34968353,107230.0,107200.0,0.1216612]
[1760839197345,0.34,107210.0,107200.0,0.1216612]
[1760839198552,0.34968353,107230.0,107200.0,0.1216612]
[1760839198782,0.34,107210.0,107200.0,0.1216612]
[1760839199871,0.34035779,107230.0,107200.0,0.1216612]
[1760839200018,0.34,107210.0,107200.0,0.1216612]
[1760839200749,0.34,107210.0,107200.0,0.14031791]
[1760839201169,0.00035779,107230.0,107200.0,0.14031791]
[1760839201379,0.01786042,107230.0,107200.0,0.14031791]
[1760839201514,0.01786042,107230.0,107200.0,0.11225671]
[1760839201941,0.01786042,107230.0,107210.0,0.02806008]
[1760839202342,0.00035779,107230.0,107210.0,0.02806008]
[1760839202544,0.02661122,107230.0,107210.0,0.02806008]
[1760839203091,0.02670415,107230.0,107210.0,0.02806008]
[1760839204798,0.21322256,107230.0,107210.0,0.02806008]
[1760839205385,0.00207678,107230.0,107210.0,0.02806008]
[1760839207000,0.18859263,107230.0,107210.0,0.02806008]
[1760839207323,0.34,107220.0,107210.0,0.02806008]
[1760839208330,0.34,107220.0,107190.0,0.09506631]
[1760839208559,0.34,107220.0,107200.0,0.02806239]
[1760839208674,0.34,107220.0,107190.0,0.09506631]
[1760839208873,0.34,107220.0,107190.0,0.1231287]
[1760839209701,0.34,107210.0,107190.0,0.0295287]
[1760839210388,0.34162615,107210.0,107190.0,0.0295287]
[1760839210894,0.00162615,107210.0,107190.0,0.0295287]
[1760839211093,0.52817608,107210.0,107190.0,0.0295287]
[1760839212156,0.18654993,107210.0,107190.0,0.0295287]
[1760839212356,0.18817611,107210.0,107190.0,0.0295287]
[1760839213248,0.00162618,107210.0,107190.0,0.0295287]
[1760839216636,0.00162618,107210.0,107190.0,0.21611183]
[1760839216836,0.00162618,107210.0,107200.0,0.33500615]
[1760839217066,0.00162618,107210.0,107200.0,0.1578396]
[1760839217202,0.00162618,107210.0,107200.0,0.17649631]
[1760839217412,0.00162618,107210.0,107200.0,0.08289631]
[1760839217856,0.00162618,107210.0,107200.0,0.17653631]
[1760839220525,0.00162618,107210.0,107200.0,0.08289631]
[1760839220733,0.00162618,107210.0,107200.0,0.17653631]
[1760839222335,0.00162618,107210.0,107200.0,0.08289631]
[1760839222548,0.00162618,107210.0,107200.0,0.02805732]
[1760839222752,0.00162618,107210.0,107200.0,0.12169732]
[1760839225827,0.00162618,107210.0,107200.0,0.14035403]
[1760839225998,0.00162618,107210.0,107200.0,0.02805732]
[1760839226336,0.00162618,107210.0,107200.0,0.12173732]
[1760839230784,0.00162618,107210.0,107200.0,0.02805732]
[1760839231177,0.00162618,107210.0,107200.0,0.09368]
[1760839232611,0.00162618,107210.0,107190.0,0.02952363]
[1760839232822,0.00162618,107210.0,107190.0,0.09514631]
[1760839233183,0.53586082,107220.0,107190.0,0.09514631]
[1760839233411,0.57601533,107220.0,107190.0,0.00146631]
[1760839233604,0.57601533,107220.0,107190.0,0.09514631]
[1760839234027,0.37410907,107220.0,107190.0,0.09514631]
[1760839234224,0.56064328,107220.0,107190.0,0.00146631]
[1760839234423,0.54730523,107220.0,107190.0,0.09514631]
[1760839236991,0.54730523,107220.0,107190.0,0.00146631]
[1760839242963,0.53797821,107220.0,107190.0,0.00146631]
[1760839245150,0.52048836,107220.0,107190.0,0.00146631]
[1760839245351,0.53796894,107220.0,107190.0,0.00146631]
[1760839246346,0.5207854,107220.0,107190.0,0.00146631]
[1760839247657,0.50330482,107220.0,107190.0,0.00146631]
[1760839248061,0.33425276,107220.0,107190.0,0.00146631]
[1760839248272,0.35748324,107220.0,107190.0,0.00146631]
[1760839248512,0.35748324,107220.0,107190.0,0.02952988]
[1760839248716,0.34,107220.0,107190.0,0.02952988]
[1760839249120,0.34,107220.0,107190.0,0.04818833]
[1760839250110,0.34162613,107220.0,107190.0,0.04818833]
[1760839251157,0.00162613,107220.0,107190.0,0.04818833]
[1760839252002,0.00162613,107220.0,107200.0,0.09364]
[1760839252175,0.00162613,107220.0,107200.0,0.12170065]
[1760839253673,0.00045072,107230.0,107200.0,0.12170065]
[1760839253862,0.01794385,107230.0,107200.0,0.12170065]
[1760839254454,0.01794385,107230.0,107200.0,0.14035736]
[1760839255020,0.00045072,107230.0,107200.0,0.14035736]
[1760839255478,0.01794497,107230.0,107200.0,0.14035736]
[1760839256088,0.01957102,107230.0,107200.0,0.14035736]
[1760839256638,0.01957102,107230.0,107200.0,0.12170065]
[1760839258186,0.01957102,107230.0,107200.0,0.14035736]
[1760839259039,0.01957102,107230.0,107200.0,0.12170065]
[1760839259802,0.18859204,107230.0,107200.0,0.02806065]
[1760839260041,0.18859204,107230.0,107200.0,0.12170065]
[1760839260234,0.00207677,107230.0,107200.0,0.12170065]
[1760839260583,0.18859213,107230.0,107200.0,0.12170065]
[1760839261380,0.34,107220.0,107200.0,0.12170065]
[1760839261507,0.34,107220.0,107200.0,0.02806065]
[1760839261722,0.34,107220.0,107200.0,0.12170065]
[1760839264704,0.34,107220.0,107200.0,0.02806065]
[1760839265120,0.34,107220.0,107200.0,0.12170065]
[1760839265674,0.34,107220.0,107200.0,0.02806065]
[1760839265929,0.34,107220.0,107200.0,0.12170065]
[1760839266482,0.53585995,107220.0,107190.0,0.02012476]
[1760839266873,0.53585995,107220.0,107190.0,0.12316993]
[1760839273319,0.34932661,107220.0,107190.0,0.12316993]
[1760839276291,0.34,107220.0,107190.0,0.12316993]
[1760839277474,5.0,107220.0,107200.0,0.01865671]
[1760839284033,5.0,107220.0,107200.0,0.04671744]
[1760839293042,5.0,107220.0,107190.0,0.00146631]
[1760839293268,5.0,107220.0,107200.0,0.09364]
[1760839294217,0.02462558,107220.0,107200.0,0.09364]
[1760839296299,0.34207677,107230.0,107200.0,0.09364]
[1760839296503,5.0,107220.0,107200.0,0.09364]
[1760839299255,4.79320579,107220.0,107200.0,0.09364]
[1760839299385,0.53791896,107230.0,107200.0,0.09364]
[1760839299583,0.53791896,107230.0,107190.0,0.00146631]
[1760839299584,0.34,107200.0,107190.0,0.00146631]
[1760839299838,0.18655021,107210.0,107190.0,0.00146631]
[1760839300137,0.20406263,107210.0,107190.0,0.00146631]
[1760839301343,0.21868401,107210.0,107190.0,0.00146631]
[1760839301512,0.22868821,107210.0,107190.0,0.00146631]
[1760839302407,0.21117579,107210.0,107190.0,0.00146631]
[1760839302914,0.21280202,107210.0,107190.0,0.00146631]
[1760839306336,0.21275538,107210.0,107190.0,0.00146631]
[1760839306921,0.02625181,107210.0,107190.0,0.00146631]
[1760839307117,0.00162623,107210.0,107190.0,0.00146631]
[1760839308427,0.18817611,107210.0,107190.0,0.00146631]
[1760839308652,0.00162623,107210.0,107190.0,0.00146631]
[1760839312100,0.00162623,107210.0,107190.0,0.02012476]
[1760839312562,0.00162623,107210.0,107190.0,0.11380476]
[1760839321482,0.34,107200.0,107190.0,0.00146631]
[1760839321630,0.34,107200.0,107190.0,0.09514631]
[1760839323512,0.34,107200.0,107190.0,0.00146631]
[1760839323732,0.52656716,107200.0,107190.0,0.00146631]
[1760839324816,0.34,107200.0,107190.0,0.00146631]
[1760839338669,0.36969376,107210.0,107190.0,0.00146631]
[1760839338907,5.0,107200.0,107190.0,0.00146631]
[1760839339280,4.79318452,107200.0,107190.0,0.00146631]
[1760839339486,5.0,107200.0,107190.0,0.00146631]
[1760839339684,0.52817602,107210.0,107190.0,0.00146631]
[1760839340005,0.54567062,107210.0,107190.0,0.00146631]
[1760839342750,0.35912083,107210.0,107190.0,0.00146631]
[1760839344462,0.34162623,107210.0,107190.0,0.00146631]
[1760839344684,0.52817599,107210.0,107190.0,0.00146631]
[1760839344950,0.34162623,107210.0,107190.0,0.00146631]
[1760839348300,0.54568211,107210.0,107190.0,0.00146631]
[1760839350885,0.52656716,107200.0,107190.0,0.00146631]
[1760839351459,0.56870688,107200.0,107190.0,0.00146631]
[1760839355675,0.59677785,107200.0,107190.0,0.00146631]
[1760839358359,0.59840432,107200.0,107190.0,0.00146631]
[1760839361868,0.38721158,107200.0,107190.0,0.00146631]
[1760839362090,0.35914061,107200.0,107190.0,0.00146631]
[1760839362459,0.34162647,107200.0,107190.0,0.00146631]
[1760839362675,0.35912358,107200.0,107190.0,0.00146631]
[1760839362899,0.54569074,107200.0,107190.0,0.00146631]
[1760839365196,0.35912358,107200.0,107190.0,0.00146631]
[1760839365571,0.34162647,107200.0,107190.0,0.00146631]
[1760839367237,0.16307095,107200.0,107190.0,0.00146631]
[1760839367464,0.00162647,107200.0,107190.0,0.00146631]
[1760839375753,0.18819363,107200.0,107190.0,0.00146631]
[1760839376878,0.00162647,107200.0,107190.0,0.00146631]
[1760839377284,0.18819363,107200.0,107190.0,0.00146631]
[1760839377708,0.52819363,107200.0,107190.0,0.00146631]
[1760839377911,0.54569288,107200.0,107190.0,0.00146631]
[1760839380371,0.57031846,107200.0,107190.0,0.00146631]
[1760839381992,0.3837513,107200.0,107190.0,0.00146631]
[1760839382211,0.35912572,107200.0,107190.0,0.00146631]
[1760839383589,0.54569288,107200.0,107190.0,0.00146631]
[1760839385215,0.35912572,107200.0,107190.0,0.00146631]
[1760839387838,0.54569288,107200.0,107190.0,0.00146631]
[1760839392249,0.56069536,107200.0,107190.0,0.00146631]
[1760839395743,0.54319611,107200.0,107190.0,0.00146631]
[1760839395945,0.56070748,107200.0,107190.0,0.00146631]
[1760839396322,5.56070748,107200.0,107190.0,0.00146631]
[1760839396547,5.58877848,107200.0,107190.0,0.00146631]
[1760839408563,5.573776,107200.0,107190.0,0.00146631]
[1760839411980,5.545705,107200.0,107190.0,0.00146631]
[1760839415683,5.54570297,107200.0,107190.0,0.00146631]
[1760839427709,5.57032855,107200.0,107190.0,0.00146631]
[1760839428079,5.59839821,107200.0,107190.0,0.00146631]
[1760839434759,5.57377263,107200.0,107190.0,0.00146631]
[1760839435987,5.57377592,107200.0,107190.0,0.00146631]
[1760839438818,5.54570626,107200.0,107190.0,0.00146631]
[1760839440598,5.54407979,107200.0,107190.0,0.00146631]
[1760839440802,5.35751263,107200.0,107190.0,0.00146631]
[1760839440958,5.54407979,107200.0,107190.0,0.00146631]
[1760839441762,0.35751263,107200.0,107190.0,0.00146631]
[1760839443435,0.01751263,107200.0,107190.0,0.00146631]
[1760839443730,0.01913903,107200.0,107190.0,0.00146631]
[1760839444941,0.20570619,107200.0,107190.0,0.00146631]
[1760839445565,0.54570619,107200.0,107190.0,0.00146631]
[1760839446642,5.57033177,107200.0,107190.0,0.00146631]
[1760839446847,5.59840442,107200.0,107190.0,0.00146631]
[1760839448046,5.60915591,107200.0,107190.0,0.00146631]
[1760839448262,5.59840442,107200.0,107190.0,0.00146631]
[1760839449095,5.63458306,107200.0,107190.0,0.00146631]
[1760839450093,5.63295666,107200.0,107190.0,0.00146631]
[1760839450283,5.6345833,107200.0,107190.0,0.00146631]
[1760839450552,5.63295666,107200.0,107190.0,0.00146631]
[1760839450970,5.66723886,107200.0,107190.0,0.00146631]
[1760839452854,5.66886551,107200.0,107190.0,0.00146631]
[1760839453446,5.63458331,107200.0,107190.0,0.00146631]
[1760839456711,5.60995773,107200.0,107190.0,0.00146631]
[1760839457407,5.62495481,107200.0,107190.0,0.00146631]
[1760839457969,5.57377545,107200.0,107190.0,0.00146631]
[1760839458776,5.5457028,107200.0,107190.0,0.00146631]
[1760839463082,5.54569777,107200.0,107190.0,0.00146631]
[1760839465044,5.57032335,107200.0,107190.0,0.00146631]
[1760839466285,5.59839411,107200.0,107190.0,0.00146631]
[1760839470328,5.63457639,107200.0,107190.0,0.00146631]
[1760839471077,5.64921496,107200.0,107190.0,0.00146631]
[1760839474238,5.63457639,107200.0,107190.0,0.00146631]
[1760839474982,5.60995081,107200.0,107190.0,0.00146631]
[1760839477261,5.62458918,107200.0,107190.0,0.00146631]
[1760839478062,5.5884069,107200.0,107190.0,0.00146631]
[1760839481596,5.60340398,107200.0,107190.0,0.00146631]
[1760839484173,5.58876561,107200.0,107190.0,0.00146631]
[1760839487315,5.60340375,107200.0,107190.0,0.00146631]
[1760839487874,5.63958603,107200.0,107190.0,0.00146631]
[1760839488123,5.65796174,107200.0,107190.0,0.00146631]
[1760839488708,5.63958603,107200.0,107190.0,0.00146631]
[1760839494365,5.62494789,107200.0,107190.0,0.00146631]
[1760839497132,5.63958564,107200.0,107190.0,0.00146631]
[1760839499544,5.58840628,107200.0,107190.0,0.00146631]
[1760839502038,5.588416,107200.0,107190.0,0.00146631]
[1760839503248,5.686826,107200.0,107190.0,0.00146631]
[1760839503476,5.588416,107200.0,107190.0,0.00146631]
[1760839504254,5.57377825,107200.0,107190.0,0.00146631]
[1760839504475,5.20570749,107200.0,107190.0,0.00146631]
[1760839504633,5.54570749,107200.0,107190.0,0.00146631]
[1760839506037,5.54408084,107200.0,107190.0,0.00146631]
[1760839507071,5.55872363,107200.0,107190.0,0.00146631]
[1760839507278,5.57336048,107200.0,107190.0,0.00146631]
[1760839507996,5.58334327,107200.0,107190.0,0.00146631]
[1760839508309,5.58496977,107200.0,107190.0,0.00146631]
[1760839508430,5.41197217,107200.0,107190.0,0.00146631]
[1760839508666,5.58496977,107200.0,107190.0,0.00146631]
[1760839509913,5.61141332,107200.0,107190.0,0.00146631]
[1760839512423,5.61303982,107200.0,107190.0,0.00146631]
[1760839514352,5.59840297,107200.0,107190.0,0.00146631]
[1760839517230,5.6130398,107200.0,107190.0,0.00146631]
[1760839524198,5.59840297,107200.0,107190.0,0.00146631]
[1760839527382,5.6130398,107200.0,107190.0,0.00146631]
[1760839544298,5.59840297,107200.0,107190.0,0.00146631]
[1760839546300,5.59800297,107200.0,107190.0,0.00146631]
[1760839547378,5.61264038,107200.0,107190.0,0.00146631]
[1760839551714,5.5955267,107200.0,107190.0,0.00146631]
[1760839556153,5.58088929,107200.0,107190.0,0.00146631]
[1760839558833,5.59552675,107200.0,107190.0,0.00146631]
[1760839563623,5.6130468,107200.0,107190.0,0.00146631]
[1760839568356,5.59840934,107200.0,107190.0,0.00146631]
[1760839571217,5.61304651,107200.0,107190.0,0.00146631]
[1760839574804,5.59840934,107200.0,107190.0,0.00146631]
[1760839576239,5.57378376,107200.0,107190.0,0.00146631]
[1760839577895,5.58842093,107200.0,107190.0,0.00146631]
[1760839584745,5.24842093,107200.0,107190.0,0.00146631]
[1760839586663,5.58842093,107200.0,107190.0,0.00146631]
[1760839588596,5.60272576,107200.0,107190.0,0.00146631]
[1760839588875,5.59914098,107200.0,107190.0,0.00146631]
[1760839589180,5.61377859,107200.0,107190.0,0.00146631]
[1760839590577,5.59914098,107200.0,107190.0,0.00146631]
[1760839591116,5.59751448,107200.0,107190.0,0.00146631]
[1760839591893,5.61215254,107200.0,107190.0,0.00146631]
[1760839594448,5.61377921,107200.0,107190.0,0.00146631]
[1760839594590,5.42739451,107200.0,107190.0,0.00146631]
[1760839595205,5.48518796,107200.0,107190.0,0.00146631]
[1760839597410,5.4705499,107200.0,107190.0,0.00146631]
[1760839598329,5.48518831,107200.0,107190.0,0.00146631]
[1760839603182,5.48356164,107200.0,107190.0,0.00146631]
[1760839605037,5.46604159,107200.0,107190.0,0.00146631]
[1760839605240,5.57793519,107200.0,107190.0,0.00146631]
[1760839606087,5.57956195,107200.0,107190.0,0.00146631]
[1760839607306,5.57956195,107200.0,107150.0,0.02807441]
[1760839607307,0.5266368,107160.0,107150.0,0.02807441]
[1760839607513,0.53596864,107160.0,107130.0,0.00046669]
[1760839607714,0.53596864,107160.0,107140.0,0.02807441]
[1760839607935,0.56567221,107160.0,107140.0,0.02807441]
[1760839608489,0.56567221,107160.0,107140.0,0.02857258]
[1760839608715,0.18665422,107150.0,107140.0,0.02857258]
[1760839610012,0.19776761,107150.0,107140.0,0.02857258]
[1760839610226,0.21240837,107150.0,107140.0,0.02857258]
[1760839610833,0.02575415,107150.0,107140.0,0.02857258]
[1760839612433,0.21240837,107150.0,107140.0,0.02857258]